{"text_format":"1","workbook":"xlsx","n_sheets":4,"sheets":["1441","ورقة2","ورقة3","ورقة1"],"not_rendered":{"charts":0,"images":0,"macros":1,"external_links":0,"defined_names":0,"comments":0,"pivot_tables":0},"unopened":[],"bounds":{"document_bytes":16777216,"sheet_cells":100000,"rows_first":2000,"rows_last":500,"rows_between":2000,"halvings":0,"cell_chars":16384,"cell_head_chars":4096},"cells_cut":0,"cells_raw":0,"read":"whole","date_system":"1900"}

{"sheet":"1441","index":0,"n_rows":19,"n_cols":13,"rows_kept":19,"cut":false,"hidden":false,"merged":[]}
[null,null,"بيان بالعملاء لعام 1441 هـ"]
[]
["رقم الفاتوره","اسم العميل","الجوال","العنوان","بداية الضمان","نهاية الضمان","حالة الضمان","النوع","المبلغ"," التركيب","ملاحظات"]
[142,"فالح  مفلح فالح الدوسري",null,null,{"$f":"TODAY()","v":"2020-05-20"},"2021-05-09",{"$f":"IF(F4=TODAY(),\"finish\",IF(F4>TODAY(),\"not  finish\",IF(F4<TODAY(),\"not  finish\",\"\")))","v":"not  finish"}]
[142,"مرضي مبارك الدوسري",null,null,"11\\08\\1441","2020-05-20",{"$f":"IF(F5=TODAY(),\"finish\",IF(F5>TODAY(),\"not  finish\",IF(F5<TODAY(),\"not  finish\",\"\")))","v":"finish"}]
[261,"عبدالله ال خليف",null,null,"18\\08\\1441","2020-05-19","not  finish"]
[127,"فالح فهاد مفلح",null,null,"19\\08\\1441","2020-05-18",{"$f":"IF(F7=TODAY(),\"finish\",IF(F7>TODAY(),\"not  finish\",IF(F7<TODAY(),\"not  finish\",\"\")))","v":"not  finish"}]
[128,"جابر شايع الدوسري",null,null,"08\\09\\1441","2020-05-20","finish"]
[129,"خالد ناصر ال تني",null,null,"09\\09\\1441","2020-05-15","not  finish"]
[131,"عبدالله حمد الدوسري",null,null,"13\\09\\1441","2020-05-16","not  finish"]
[132,"محمد ظافر ال مشعوف",null,null,"19\\09\\1441","2020-05-17","not  finish"]
[133,"عبدالله ناصر ال فاران",null,null,"19\\09\\1441","2020-05-18","not  finish"]
[134,"راشد عبدالله الدوسري",null,null,"24\\09\\1441",{"$f":"TODAY()","v":"2020-05-20"},"finish",null,null,null,null,{"$f":"SUM(I4:I27)","v":0},{"$f":"SUM(J4:J27)","v":0}]
[135,"عبدالله سعود ال رويه",null,null,"25\\09\\1441","2020-05-20","finish"]
[136,"عبدالهادي عبدالله",null,null,"26\\09\\1441","2020-05-20","finish"]
[137,"سعود محمد ال رويه",null,null,"28\\09\\1441","2020-05-20","finish"]
[null,null,null,null,null,null,{"$f":"IF(F17=TODAY(),\"finish\",IF(F17>TODAY(),\"not  finish\",\"\"))","v":""}]
[null,null,null,null,null,null,{"$f":"IF(F18=TODAY(),\"finish\",IF(F18>TODAY(),\"not  finish\",\"\"))","v":""}]
[null,null,null,null,null,null,""]

{"sheet":"ورقة2","index":1,"n_rows":0,"n_cols":0,"rows_kept":0,"cut":false,"hidden":false,"merged":[]}

{"sheet":"ورقة3","index":2,"n_rows":0,"n_cols":0,"rows_kept":0,"cut":false,"hidden":false,"merged":[]}

{"sheet":"ورقة1","index":3,"n_rows":0,"n_cols":0,"rows_kept":0,"cut":false,"hidden":false,"merged":[]}